lending/lending_fUSD_20250131
["ID","MTS","AMOUNT","RATE_DAILY","PERIOD"]
[351139876,1738348305072,-176.849198,0.00021852,2]
[351139877,1738348305081,-151.0,0.00021852,2]
[351139878,1738348305091,-151.0,0.00021852,2]
[351139879,1738348305099,-151.0,0.00021852,2]
[351139880,1738348305109,-151.0,0.00021852,2]
[351139881,1738348305118,-151.0,0.00021852,2]
[351139882,1738348305128,-151.0,0.00021852,2]
[351139883,1738348305137,-2069.76665964,0.00021854,2]
[351139884,1738348305147,-3120.795,0.00021854,30]
[351139885,1738348305156,-2365.01626289,0.00021854,2]
[351139886,1738348305164,-534.30827956,0.00021854,120]
[351139887,1738348305173,-392.0,0.00021854,7]
[351139888,1738348305182,-3066.29871,0.00021854,120]
[351139889,1738348305192,-152719.00008996,0.00021854,2]
[351139890,1738348305201,-900.0,0.00021854,28]
[351139891,1738348305213,-2302.68230813,0.00021854,120]
[351139892,1738348305222,-1471.6107802,0.00021854,10]
[351139893,1738348305231,-695.50214055,0.00021854,10]
[351139894,1738348305240,-2209.51172969,0.00021854,10]
[351139895,1738348305249,-2239.65962469,0.00021854,10]
[351139896,1738348305259,-1000.0,0.00021854,10]
[351139897,1738348305268,-500.0,0.00021854,10]
[351139898,1738348305278,-1730.96149101,0.00021854,7]
[351139899,1738348305288,-1000.0,0.00021854,30]
[351139900,1738348305298,-4781.20532383,0.00021854,10]
[351139901,1738348305308,-270.52722783,0.00021854,10]
[351139902,1738348305320,-173.22184451,0.00021854,60]
[351139903,1738348305329,-150.02628249,0.00021854,60]
[351139904,1738348305339,-613.00148265,0.00021854,120]
[351139905,1738348305350,-300.0,0.00021854,2]
[351139906,1738348305360,-1257.2711595,0.00021854,120]
[351139907,1738348305369,-278.46423171,0.00021854,120]
[351139908,1738348305378,-1000.0,0.00021854,30]
[351139909,1738348305387,-2365631.7303559,0.00021854,30]
[351139910,1738348305397,-1000.10322917,0.00021854,120]
[351139911,1738348305406,-2333.62651433,0.00021854,10]
[351139912,1738348305415,-1000.0,0.00021854,30]
[351139913,1738348305424,-1000.0,0.00021854,30]
[351139914,1738348305433,-3914141.28783533,0.00021854,30]
[351139915,1738348305601,-337.80927,0.00018353,2]
[351139917,1738349373756,453.69,0.00010137,2]
[351139948,1738349431825,-150.0,0.00013232,2]
[351139949,1738349431835,-745.08,0.00013243,2]
[351139950,1738349431847,-150.0,0.0001355,2]
[351139951,1738349431860,-1059.0,0.00013622,2]
[351139952,1738349431871,-7845.08035975,0.00014132,2]
[351139953,1738349431885,-5000.0,0.00014132,2]
[351139954,1738349431895,-217.4721092,0.00014132,2]
[351139955,1738349431909,-303.000001,0.00014132,2]
[351139956,1738349431921,-4479.5278898,0.00014132,2]
[351139957,1738349431931,-19317.96020596,0.00014139,2]
[351139958,1738349431940,-1059.0,0.00014339,2]
[351139959,1738349431950,-150.0,0.00014543,2]
[351139960,1738349431962,-1500.0,0.00015063,2]
[351139961,1738349431973,-23900.0,0.0001507,2]
[351139962,1738349431982,-1059.0,0.00015094,2]
[351139963,1738349431992,-250.0,0.00015114,2]
[351139964,1738349432001,-9983.09,0.00015161,2]
[351139965,1738349432010,-150.0,0.00015288,2]
[351139966,1738349432019,-438.32,0.00015318,2]
[351139967,1738349432029,-486.05,0.00015442,2]
[351139968,1738349432038,-745.08,0.00015507,2]
[351139969,1738349432047,-1852.42,0.00015509,2]
[351139970,1738349432058,-500.0,0.00015681,2]
[351139971,1738349432068,-2751.0,0.00015681,2]
[351139972,1738349432077,-760.88,0.00015775,2]
[351139973,1738349432086,-1059.0,0.00015888,2]
[351139974,1738349432097,-354.53,0.00015992,2]
[351139975,1738349432106,-1000.0,0.00016035,2]
[351139976,1738349432115,-200.0,0.00016062,2]
[351139977,1738349432125,-174.58,0.00016093,2]
[351139978,1738349432134,-454.56190424,0.00016152,2]
[351139979,1738349432266,-391.78809576,0.00016152,2]
[351139980,1738349432276,-1371.0,0.00016244,2]
[351139981,1738349432287,-763.52593344,0.00016353,2]
[351139982,1738349432296,-169.69,0.00016369,2]
[351139983,1738349432305,-366.5376,0.00016374,2]
[351139984,1738349432315,-2500.0,0.00016374,2]
[351139985,1738349432326,-380.5802,0.00016375,2]
[351139986,1738349432336,-2576.22665938,0.00016375,2]
[351139987,1738349432349,-7832.39244062,0.00016375,2]
[351139988,1738349432358,-804.223,0.00016375,2]
[351139989,1738349432367,-215.0377,0.00016375,2]
[351139990,1738349432376,-663.1298011,0.00016437,2]
[351139991,1738349432385,-500.0,0.00016438,2]
[351139992,1738349432394,-36.89223142,0.00016438,2]
[351139993,1738349432405,-463.10776858,0.00016438,2]
[351139994,1738349432415,-183.91306892,0.00016438,2]
[351139995,1738349432426,-316.08693108,0.00016438,2]
[351139996,1738349432435,-500.0,0.00016438,2]
[351139997,1738349432445,-500.0,0.00016438,2]
[351139999,1738349432455,-500.0,0.00016438,2]
[351140001,1738349432464,-500.0,0.00016438,2]
[351140003,1738349432473,-500.0,0.00016438,2]
[351140004,1738349432482,-500.0,0.00016438,2]
[351140006,1738349432491,-500.0,0.00016438,2]
[351140008,1738349432501,-500.0,0.00016438,2]
[351140010,1738349432510,-569.90460695,0.00016438,2]
[351140012,1738349432519,-500.0,0.00016438,2]
[351140014,1738349432528,-500.0,0.00016438,2]
[351140016,1738349432537,-500.0,0.00016438,2]
[351140017,1738349432546,-500.0,0.00016438,2]
[351140018,1738349432555,-500.0,0.00016438,2]
[351140019,1738349432564,-500.0,0.00016438,2]
[351140021,1738349432573,-500.0,0.00016438,2]
[351140023,1738349432582,-500.0,0.00016438,2]
[351140025,1738349432591,-500.0,0.00016438,2]
[351140027,1738349432603,-500.0,0.00016438,2]
[351140029,1738349432611,-500.0,0.00016438,2]
[351140031,1738349432620,-500.0,0.00016438,2]
[351140033,1738349432629,-500.0,0.00016438,2]
[351140035,1738349432639,-500.0,0.00016438,2]
[351140037,1738349432647,-500.0,0.00016438,2]
[351140039,1738349432657,-439.84235447,0.00016438,2]
[351140042,1738349432666,-500.0,0.00016438,2]
[351140045,1738349432675,-500.0,0.00016438,2]
[351140049,1738349432684,-500.0,0.00016438,2]
[351140052,1738349432693,-500.0,0.00016438,2]
[351140055,1738349432702,-500.0,0.00016438,2]
[351140058,1738349432711,-288.13053732,0.00016438,2]
[351140061,1738349432723,-211.86946268,0.00016438,2]
[351140064,1738349432731,-514.52795761,0.00016438,2]
[351140066,1738349432740,-500.0,0.00016438,2]
[351140068,1738349432749,-24.66602097,0.00016438,2]
[351140070,1738349432760,-475.33397903,0.00016438,2]
[351140072,1738349432769,-500.0,0.00016438,2]
[351140074,1738349432779,-505.6929089,0.00016438,2]
[351140076,1738349432788,-500.0,0.00016438,2]
[351140077,1738349432798,-500.0,0.00016438,2]
[351140079,1738349432807,-500.0,0.00016438,2]
[351140081,1738349432816,-500.0,0.00016438,2]
[351140083,1738349432824,-500.0,0.00016438,2]
[351140085,1738349432833,-500.0,0.00016438,2]
[351140087,1738349432843,-500.0,0.00016438,2]
[351140089,1738349432853,-500.0,0.00016438,2]
[351140091,1738349432862,-500.0,0.00016438,2]
[351140093,1738349432871,-500.0,0.00016438,2]
[351140095,1738349432880,-500.0,0.00016438,2]
[351140097,1738349432889,-500.0,0.00016438,2]
[351140099,1738349432900,-500.0,0.00016438,2]
[351140101,1738349432909,-500.0,0.00016438,2]
[351140102,1738349432918,-500.0,0.00016438,2]
[351140104,1738349432927,-500.0,0.00016438,2]
[351140106,1738349432938,-500.0,0.00016438,2]
[351140108,1738349432947,-500.0,0.00016438,2]
[351140110,1738349432956,-500.0,0.00016438,2]
[351140112,1738349432965,-500.0,0.00016438,2]
[351140114,1738349432973,-500.0,0.00016438,2]
[351140116,1738349432982,-500.0,0.00016438,2]
[351140118,1738349432991,-500.0,0.00016438,2]
[351140120,1738349433000,-500.0,0.00016438,2]
[351140122,1738349433009,-500.0,0.00016438,2]
[351140124,1738349433019,-500.0,0.00016438,2]
[351140126,1738349433027,-500.0,0.00016438,2]
[351140128,1738349433037,-500.0,0.00016438,2]
[351140130,1738349433046,-500.0,0.00016438,2]
[351140132,1738349433055,-500.0,0.00016438,2]
[351140134,1738349433065,-505.30378511,0.00016438,2]
[351140135,1738349433074,-500.0,0.00016438,2]
[351140136,1738349433083,-500.0,0.00016438,2]
[351140137,1738349433094,-500.0,0.00016438,2]
[351140138,1738349433103,-500.0,0.00016438,2]
[351140139,1738349433113,-500.0,0.00016438,2]
[351140140,1738349433123,-500.0,0.00016438,2]
[351140141,1738349433132,-500.0,0.00016438,2]
[351140142,1738349433142,-500.0,0.00016438,2]
[351140143,1738349433151,-500.0,0.00016438,2]
[351140144,1738349433160,-500.0,0.00016438,2]
[351140145,1738349433170,-500.0,0.00016438,2]
[351140146,1738349433179,-500.0,0.00016438,2]
[351140147,1738349433188,-500.0,0.00016438,2]
[351140148,1738349433197,-508.46397681,0.00016438,2]
[351140149,1738349433206,-501.42199826,0.00016438,2]
[351140150,1738349433215,-500.0,0.00016438,2]
[351140151,1738349433224,-500.0,0.00016438,2]
[351140152,1738349433233,-500.0,0.00016438,2]
[351140153,1738349433242,-516.88963972,0.00016438,2]
[351140154,1738349433252,-500.0,0.00016438,2]
[351140155,1738349433261,-500.0,0.00016438,2]
[351140156,1738349433270,-500.0,0.00016438,2]
[351140157,1738349433279,-500.0,0.00016438,2]
[351140158,1738349433288,-500.0,0.00016438,2]
[351140159,1738349433298,-500.0,0.00016438,2]
[351140160,1738349433307,-500.0,0.00016438,2]
[351140161,1738349433316,-500.0,0.00016438,2]
[351140162,1738349433325,-500.0,0.00016438,2]
[351140163,1738349433334,-500.0,0.00016438,2]
[351140164,1738349433343,-493.77697468,0.00016438,2]
[351140165,1738349433353,-626.85,0.00016438,2]
[351140166,1738349433362,-500.0,0.00016438,2]
[351140167,1738349433371,-500.0,0.00016438,2]
[351140168,1738349433380,-500.0,0.00016438,2]
[351140169,1738349433390,-483.19467329,0.00016438,2]
[351140170,1738349433399,-500.0,0.00016438,2]
[351140171,1738349433408,-500.0,0.00016438,2]
[351140172,1738349433417,-500.0,0.00016438,2]
[351140173,1738349433426,-500.0,0.00016438,2]
[351140174,1738349433436,-500.0,0.00016438,2]
[351140175,1738349433445,-500.0,0.00016438,2]
[351140176,1738349433454,-513.99280712,0.00016438,2]
[351140177,1738349433463,-500.0,0.00016438,2]
[351140178,1738349433472,-500.0,0.00016438,2]
[351140179,1738349433481,-500.0,0.00016438,2]
[351140180,1738349433491,-500.0,0.00016438,2]
[351140181,1738349433501,-500.0,0.00016438,2]
[351140182,1738349433510,-500.0,0.00016438,2]
[351140183,1738349433520,-500.0,0.00016438,2]
[351140184,1738349433529,-500.0,0.00016438,2]
[351140185,1738349433539,-500.0,0.00016438,2]
[351140186,1738349433549,-500.0,0.00016438,2]
[351140187,1738349433558,-582.27405837,0.00016438,2]
[351140188,1738349433567,-500.0,0.00016438,2]
[351140189,1738349433577,-500.0,0.00016438,2]
[351140190,1738349433586,-500.0,0.00016438,2]
[351140191,1738349433599,-290.88887996,0.00016438,7]
[351140192,1738349433608,-500.0,0.00016438,2]
[351140193,1738349433617,-500.0,0.00016438,2]
[351140194,1738349433626,-500.36742382,0.00016438,2]
[351140195,1738349433635,-500.0,0.00016438,2]
[351140196,1738349433644,-500.0,0.00016438,2]
[351140197,1738349433653,-500.0,0.00016438,2]
[351140198,1738349433663,-371.61128705,0.00016438,2]
[351140199,1738349433672,-275.7878382,0.00016438,2]
[351140200,1738349433681,-500.0,0.00016438,2]
[351140201,1738349433690,-503.522603,0.00016438,2]
[351140202,1738349433700,-500.0,0.00016438,2]
[351140203,1738349433709,-500.0,0.00016438,2]
[351140204,1738349433718,-500.0,0.00016438,2]
[351140205,1738349433727,-500.0,0.00016438,2]
[351140206,1738349433736,-500.0,0.00016438,2]
[351140207,1738349433745,-500.0,0.00016438,2]
[351140208,1738349433754,-500.0,0.00016438,2]
[351140209,1738349433763,-500.0,0.00016438,2]
[351140210,1738349433772,-500.0,0.00016438,2]
[351140211,1738349433781,-500.0,0.00016438,2]
[351140212,1738349433790,-500.0,0.00016438,2]
[351140213,1738349433799,-501.15562776,0.00016438,2]
[351140214,1738349433808,-500.0,0.00016438,2]
[351140215,1738349433817,-500.0,0.00016438,2]
[351140216,1738349433826,-512.07030981,0.00016438,2]
[351140217,1738349433836,-500.0,0.00016438,2]
[351140218,1738349433846,-500.0,0.00016438,2]
[351140219,1738349433858,-500.0,0.00016438,2]
[351140220,1738349433868,-514.3124743,0.00016438,2]
[351140221,1738349433877,-500.0,0.00016438,2]
[351140222,1738349433889,-500.0,0.00016438,2]
[351140223,1738349433901,-500.0,0.00016438,2]
[351140224,1738349433910,-500.0,0.00016438,2]
[351140225,1738349433920,-500.0,0.00016438,2]
[351140226,1738349433931,-641.52532743,0.00016438,2]
[351140227,1738349433941,-500.0,0.00016438,2]
[351140228,1738349433950,-500.0,0.00016438,2]
[351140229,1738349433960,-500.0,0.00016438,2]
[351140230,1738349433971,-500.0,0.00016438,2]
[351140231,1738349433986,-500.0,0.00016438,2]
[351140232,1738349433997,-500.0,0.00016438,2]
[351140233,1738349434006,-500.0,0.00016438,2]
[351140234,1738349434016,-504.533281,0.00016438,2]
[351140235,1738349434026,-500.0,0.00016438,2]
[351140236,1738349434035,-500.0,0.00016438,2]
[351140237,1738349434044,-486.97656681,0.00016438,2]
[351140238,1738349434054,-500.0,0.00016438,2]
[351140239,1738349434064,-517.02148985,0.00016438,2]
[351140240,1738349434073,-500.0,0.00016438,2]
[351140241,1738349434082,-500.0,0.00016438,2]
[351140242,1738349434092,-500.0,0.00016438,2]
[351140243,1738349434107,-500.0,0.00016438,2]
[351140244,1738349434117,-500.0,0.00016438,2]
[351140245,1738349434126,-500.0,0.00016438,2]
[351140246,1738349434136,-500.0,0.00016438,2]
[351140247,1738349434146,-379.81817032,0.00016438,2]
[351140248,1738349434160,-120.18182968,0.00016438,2]
[351140249,1738349434170,-500.0,0.00016438,2]
[351140250,1738349434179,-500.0,0.00016438,2]
[351140251,1738349434189,-500.0,0.00016438,2]
[351140252,1738349434198,-500.0,0.00016438,2]
[351140253,1738349434208,-500.0,0.00016438,2]
[351140254,1738349434218,-500.0,0.00016438,2]
[351140255,1738349434227,-500.0,0.00016438,2]
[351140256,1738349434236,-500.0,0.00016438,2]
[351140257,1738349434246,-167.72174493,0.00016438,2]
[351140258,1738349434266,-332.27825507,0.00016438,2]
[351140259,1738349434276,-500.0,0.00016438,2]
[351140260,1738349434286,-505.88887589,0.00016438,2]
[351140261,1738349434296,-500.0,0.00016438,2]
[351140262,1738349434305,-500.0,0.00016438,2]
[351140263,1738349434315,-213.48169578,0.00016438,2]
[351140264,1738349434324,-500.0,0.00016438,2]
[351140265,1738349434333,-49.49595836,0.00016438,2]
[351140266,1738349434348,-450.50404164,0.00016438,2]
[351140267,1738349434358,-500.0,0.00016438,2]
[351140268,1738349434367,-500.0,0.00016438,2]
[351140269,1738349434377,-500.0,0.00016438,2]
[351140270,1738349434386,-500.0,0.00016438,2]
[351140271,1738349434395,-500.0,0.00016438,2]
[351140272,1738349434405,-553.3016583,0.00016438,2]
[351140273,1738349434414,-840.94,0.00016464,2]
[351140274,1738349434423,-5000.0,0.00016474,2]
[351140275,1738349434433,-500.0,0.00016474,2]
[351140276,1738349434443,-502.7355741,0.00016474,2]
[351140277,1738349434452,-500.0,0.00016474,2]
[351140278,1738349434462,-432.69580633,0.00016474,2]
[351140279,1738349434471,-500.0,0.00016474,2]
[351140280,1738349434480,-500.0,0.00016474,2]
[351140281,1738349434490,-315.36255697,0.00016474,2]
[351140282,1738349434500,-500.0,0.00016474,2]
[351140283,1738349434509,-500.0,0.00016474,2]
[351140284,1738349434518,-500.0,0.00016474,2]
[351140285,1738349434528,-500.0,0.00016474,2]
[351140286,1738349434538,-500.0,0.00016474,2]
[351140287,1738349434547,-500.0,0.00016474,2]
[351140288,1738349434557,-530.3792377,0.00016474,2]
[351140289,1738349434566,-500.0,0.00016474,2]
[351140290,1738349434575,-500.0,0.00016474,2]
[351140291,1738349434584,-506.4059831,0.00016474,2]
[351140292,1738349434595,-500.0,0.00016474,2]
[351140293,1738349434613,-500.0,0.00016474,2]
[351140294,1738349434624,-500.0,0.00016474,2]
[351140295,1738349434634,-500.0,0.00016474,2]
[351140296,1738349434643,-500.0,0.00016474,2]
[351140297,1738349434862,-500.0,0.00016474,2]
[351140298,1738349434871,-500.0,0.00016474,2]
[351140299,1738349434882,-500.0,0.00016474,2]
[351140300,1738349434892,-500.0,0.00016474,2]
[351140301,1738349434902,-500.0,0.00016474,2]
[351140302,1738349434911,-500.0,0.00016474,2]
[351140303,1738349434920,-500.0,0.00016474,2]
[351140304,1738349434930,-500.0,0.00016474,2]
[351140305,1738349434939,-500.0,0.00016474,2]
[351140306,1738349434948,-500.0,0.00016474,2]
[351140307,1738349434957,-500.0,0.00016474,2]
[351140308,1738349434966,-500.0,0.00016474,2]
[351140309,1738349434976,-500.0,0.00016474,2]
[351140310,1738349434986,-500.0,0.00016474,2]
[351140311,1738349434995,-500.0,0.00016474,2]
[351140312,1738349435004,-500.0,0.00016474,2]
[351140313,1738349435014,-191.63572447,0.00016474,2]
[351140314,1738349435023,-500.0,0.00016474,2]
[351140315,1738349435033,-500.0,0.00016474,2]
[351140316,1738349435044,-500.0,0.00016474,2]
[351140317,1738349435054,-251.5658653,0.00016474,2]
[351140318,1738349435064,-500.0,0.00016474,2]
[351140319,1738349435073,-500.0,0.00016474,2]
[351140320,1738349435082,-500.0,0.00016474,2]
[351140321,1738349435091,-500.0,0.00016474,2]
[351140322,1738349435101,-500.0,0.00016474,2]
[351140323,1738349435110,-500.0,0.00016474,2]
[351140324,1738349435119,-241.57029567,0.00016474,2]
[351140325,1738349435129,-500.0,0.00016474,2]
[351140326,1738349435138,-500.0,0.00016474,2]
[351140327,1738349435148,-500.0,0.00016474,2]
[351140328,1738349435158,-500.0,0.00016474,2]
[351140329,1738349435167,-503.19504524,0.00016474,2]
[351140330,1738349435176,-500.0,0.00016474,2]
[351140331,1738349435185,-500.0,0.00016474,2]
[351140332,1738349435195,-500.0,0.00016474,2]
[351140333,1738349435204,-500.0,0.00016474,2]
[351140334,1738349435214,-600.82111786,0.00016474,2]
[351140335,1738349435223,-500.0,0.00016474,2]
[351140336,1738349435234,-500.0,0.00016474,2]
[351140337,1738349435243,-500.0,0.00016474,2]
[351140338,1738349435251,-500.0,0.00016474,2]
[351140339,1738349435262,-500.0,0.00016474,2]
[351140340,1738349435272,-500.0,0.00016474,2]
[351140341,1738349435281,-500.0,0.00016474,2]
[351140342,1738349435289,-504.18097968,0.00016474,2]
[351140343,1738349435298,-500.0,0.00016474,2]
[351140344,1738349435307,-500.0,0.00016474,2]
[351140345,1738349435316,-500.0,0.00016474,2]
[351140346,1738349435325,-500.0,0.00016474,2]
[351140347,1738349435334,-500.0,0.00016474,2]
[351140348,1738349435343,-500.0,0.00016474,2]
[351140349,1738349435354,-500.0,0.00016474,2]
[351140350,1738349435362,-500.0,0.00016474,2]
[351140351,1738349435371,-500.0,0.00016474,2]
[351140352,1738349435381,-500.0,0.00016474,2]
[351140353,1738349435390,-500.0,0.00016474,2]
[351140354,1738349435398,-500.0,0.00016474,2]
[351140355,1738349435408,-500.0,0.00016474,2]
[351140356,1738349435416,-605.3121145,0.00016474,2]
[351140357,1738349435425,-500.0,0.00016474,2]
[351140358,1738349435434,-501.67,0.00016474,2]
[351140359,1738349435443,-500.0,0.00016474,2]
[351140360,1738349435452,-500.0,0.00016474,2]
[351140361,1738349435462,-551.57007993,0.00016474,2]
[351140362,1738349435471,-500.0,0.00016474,2]
[351140363,1738349435480,-500.0,0.00016474,2]
[351140364,1738349435489,-500.0,0.00016474,2]
[351140365,1738349435498,-500.0,0.00016474,2]
[351140366,1738349435507,-500.0,0.00016474,2]
[351140367,1738349435516,-500.0,0.00016474,2]
[351140368,1738349435525,-500.0,0.00016474,2]
[351140369,1738349435534,-500.0,0.00016474,2]
[351140370,1738349435544,-500.0,0.00016474,2]
[351140371,1738349435553,-500.0,0.00016474,2]
[351140372,1738349435563,-850.9,0.00016474,2]
[351140373,1738349435573,-500.0,0.00016474,2]
[351140374,1738349435583,-506.77723076,0.00016474,2]
[351140375,1738349435591,-500.0,0.00016474,2]
[351140376,1738349435605,-500.0,0.00016474,2]
[351140377,1738349435615,-500.0,0.00016474,2]
[351140378,1738349435624,-204.20919617,0.00016474,2]
[351140379,1738349435633,-500.0,0.00016474,2]
[351140380,1738349435642,-500.0,0.00016474,2]
[351140381,1738349435651,-500.0,0.00016474,2]
[351140382,1738349435659,-500.0,0.00016474,2]
[351140383,1738349435668,-500.0,0.00016474,2]
[351140384,1738349435678,-500.0,0.00016474,2]
[351140385,1738349435686,-500.0,0.00016474,2]
[351140386,1738349435697,-500.0,0.00016474,2]
[351140387,1738349435706,-500.0,0.00016474,2]
[351140388,1738349435715,-382.0014738,0.00016474,2]
[351140389,1738349435724,-500.0,0.00016474,2]
[351140390,1738349435735,-500.0,0.00016474,2]
[351140391,1738349435743,-500.0,0.00016474,2]
[351140392,1738349435752,-500.0,0.00016474,2]
[351140393,1738349435764,-500.0,0.00016474,2]
[351140394,1738349435773,-510.62,0.00016474,2]
[351140395,1738349435783,-500.0,0.00016474,2]
[351140396,1738349435792,-500.0,0.00016474,2]
[351140397,1738349435802,-500.0,0.00016474,2]
[351140398,1738349435811,-500.0,0.00016474,2]
[351140399,1738349435820,-500.0,0.00016474,2]
[351140400,1738349435829,-29252.7008,0.00016475,2]
[351140401,1738349435838,-55555.0,0.00016475,2]
[351140402,1738349435849,-1000.0,0.00016545,2]
[351140403,1738349435858,-7975.3696,0.00016545,2]
[351140404,1738349435867,-500.0,0.00016573,2]
[351140405,1738349435877,-500.0,0.00016573,2]
[351140406,1738349435889,-500.0,0.00016573,2]
[351140407,1738349435898,-500.0,0.00016573,2]
[351140408,1738349435907,-177.979549,0.00016573,2]
[351140409,1738349435917,-500.0,0.00016573,2]
[351140410,1738349435927,-1203.14,0.00016573,2]
[351140411,1738349435936,-500.0,0.00016573,2]
[351140412,1738349435946,-500.0,0.00016573,2]
[351140413,1738349435955,-500.0,0.00016573,2]
[351140414,1738349435965,-500.0,0.00016573,2]
[351140415,1738349435975,-500.0,0.00016573,2]
[351140416,1738349435984,-533.98,0.00016573,2]
[351140417,1738349435993,-500.0,0.00016573,2]
[351140418,1738349436002,-500.0,0.00016573,2]
[351140419,1738349436011,-500.0,0.00016573,2]
[351140420,1738349436021,-500.0,0.00016573,2]
[351140421,1738349436030,-500.0,0.00016573,2]
[351140422,1738349436039,-500.0,0.00016573,2]
[351140423,1738349436048,-500.0,0.00016573,2]
[351140424,1738349436058,-500.0,0.00016573,2]
[351140425,1738349436067,-500.0,0.00016573,2]
[351140426,1738349436077,-500.0,0.00016573,2]
[351140427,1738349436087,-500.0,0.00016573,2]
[351140428,1738349436098,-500.0,0.00016573,2]
[351140429,1738349436107,-500.0,0.00016573,2]
[351140430,1738349436116,-500.0,0.00016573,2]
[351140431,1738349436126,-500.0,0.00016573,2]
[351140432,1738349436135,-500.0,0.00016573,2]
[351140433,1738349436144,-500.0,0.00016573,2]
[351140434,1738349436153,-500.0,0.00016573,2]
[351140435,1738349436162,-1563.77,0.00016573,2]
[351140436,1738349436172,-500.0,0.00016574,2]
[351140437,1738349436182,-500.0,0.00016574,2]
[351140438,1738349436190,-500.0,0.00016574,2]
[351140439,1738349436199,-275.34112611,0.00016574,2]
[351140440,1738349436208,-500.0,0.00016574,2]
[351140441,1738349436217,-508.02660484,0.00016574,2]
[351140442,1738349436226,-500.0,0.00016574,2]
[351140443,1738349436235,-500.0,0.00016574,2]
[351140444,1738349436243,-500.0,0.00016574,2]
[351140445,1738349436252,-500.0,0.00016574,2]
[351140446,1738349436261,-500.0,0.00016574,2]
[351140447,1738349436270,-500.0,0.00016574,2]
[351140448,1738349436278,-500.0,0.00016574,2]
[351140449,1738349436287,-612.74894247,0.00016574,2]
[351140450,1738349436296,-500.0,0.00016574,2]
[351140451,1738349436305,-500.0,0.00016574,2]
[351140452,1738349436314,-500.0,0.00016574,2]
[351140453,1738349436323,-500.0,0.00016574,2]
[351140454,1738349436332,-500.0,0.00016574,2]
[351140455,1738349436341,-500.0,0.00016574,2]
[351140456,1738349436352,-500.0,0.00016574,2]
[351140457,1738349436361,-500.0,0.00016574,2]
[351140458,1738349436370,-500.0,0.00016574,2]
[351140459,1738349436378,-500.0,0.00016574,2]
[351140460,1738349436387,-500.0,0.00016574,2]
[351140461,1738349436395,-500.0,0.00016574,2]
[351140462,1738349436404,-500.0,0.00016574,2]
[351140463,1738349436413,-500.0,0.00016574,2]
[351140464,1738349436422,-597.60049329,0.00016574,2]
[351140465,1738349436430,-500.0,0.00016574,2]
[351140466,1738349436439,-500.0,0.00016574,2]
[351140467,1738349436447,-382.1473328,0.00016574,2]
[351140468,1738349436456,-500.0,0.00016574,2]
[351140469,1738349436465,-510.09309352,0.00016574,2]
[351140470,1738349436474,-500.0,0.00016574,2]
[351140471,1738349436482,-500.0,0.00016574,2]
[351140472,1738349436491,-500.0,0.00016574,2]
[351140473,1738349436500,-500.0,0.00016574,2]
[351140474,1738349436509,-507.87279648,0.00016574,2]
[351140475,1738349436518,-500.0,0.00016574,2]
[351140476,1738349436527,-500.0,0.00016574,2]